bitfinex-derivatives/quotes_SOLF0:USTF0_20241029
["timestamp","ask_amount","ask_price","bid_price","bid_amount"]
[1730183231607,3.94,180.61,180.53,1.2258]
[1730183231796,2.7708,180.59,180.55,2.7712]
[1730183234703,3.94,180.61,180.53,1.2258]
[1730183235008,3.94,180.61,180.59,2.7706]
[1730183239205,3.94,180.61,180.53,1.2258]
[1730183239399,3.94,180.62,180.53,1.2258]
[1730183239601,3.94,180.65,180.54,3.94]
[1730183240303,6.7098,180.65,180.61,2.7703]
[1730183240798,2.7698,180.65,180.61,2.7703]
[1730183240994,2.7697,180.66,180.61,2.7703]
[1730183241204,3.94,180.65,180.61,2.7703]
[1730183242206,3.94,180.65,180.61,8.73323027]
[1730183243703,3.94,180.65,180.62,2.7701]
[1730183245305,3.94,180.65,180.54,3.94]
[1730183245606,6.7099,180.65,180.61,2.7704]
[1730183246213,2.77,180.64,180.61,2.7704]
[1730183247314,8.73323027,180.63,180.59,2.7706]
[1730183247903,5.96293027,180.63,180.53,1.2258]
[1730183248110,2.7706,180.61,180.56,5.96293027]
[1730183248310,3.94,180.6,180.56,5.96293027]
[1730183248514,3.94,180.6,180.52,1.2443]
[1730183248707,6.7106,180.6,180.56,2.7712]
[1730183251011,12.67353027,180.6,180.56,2.7712]
[1730183253222,2.7707,180.59,180.56,2.7712]
[1730183256721,5.96293027,180.59,180.46,1.2254]
[1730183256923,2.7714,180.55,180.51,5.96293027]
[1730183258119,3.94,180.56,180.51,8.73473027]
[1730183258326,6.7113,180.56,180.51,5.96293027]
[1730183259024,6.7113,180.56,180.52,2.7718]
[1730183259730,6.7113,180.56,180.51,5.96293027]
[1730183259731,2.7714,180.55,180.51,8.73483027]
[1730183260323,6.7113,180.56,180.52,2.7717]
[1730183260524,3.94,180.56,180.51,5.96293027]
[1730183261234,2.7714,180.55,180.51,8.73483027]
[1730183263030,9.90293027,180.56,180.46,3.6651]
[1730183263239,2.7716,180.54,180.49,2.7723]
[1730183263423,2.7716,180.54,180.49,5.96293027]
[1730183264335,2.7716,180.54,180.5,2.7721]
[1730183268328,2.7718,180.53,180.49,8.73503027]
[1730183268525,3.94,180.52,180.46,3.6651]
[1730183268738,3.94,180.52,180.48,5.96293027]
[1730183268937,3.94,180.52,180.46,3.6651]
[1730183269138,3.94,180.52,180.48,5.96293027]
[1730183269736,3.94,180.52,180.49,2.7722]
[1730183271132,3.94,180.52,180.5,5.96293027]
[1730183272325,2.7717,180.53,180.5,5.96293027]
[1730183272529,14.98526149,180.59,180.52,5.96293027]
[1730183272530,3.94,180.56,180.52,5.96293027]
[1730183274634,3.94,180.56,180.53,2.7715]
[1730183275838,6.7112,180.56,180.53,2.7715]
[1730183277837,3.94,180.56,180.52,5.96293027]
[1730183278039,3.94,180.56,180.54,2.7714]
[1730183279142,6.7112,180.56,180.53,2.7716]
[1730183280044,2.7715,180.55,180.52,2.7717]
[1730183281039,9.90293027,180.56,180.5,5.96293027]
[1730183281340,8.73453027,180.54,180.5,8.73493027]
[1730183281540,8.73453027,180.54,180.5,2.772]
[1730183284745,5.96293027,180.54,180.46,2.4227]
[1730183284949,5.96293027,180.53,180.48,5.96293027]
[1730183286250,2.7718,180.52,180.49,2.7723]
[1730183287349,6.7118,180.52,180.49,2.7723]
[1730183288155,3.94,180.52,180.46,2.4227]
[1730183288345,5.96293027,180.51,180.39,336.0]
[1730183288544,5.96293027,180.51,180.44,5.96293027]
[1730183288748,5.96293027,180.51,180.47,5.96293027]
[1730183288943,3.94,180.52,180.47,5.96293027]
[1730183289144,9.90293027,180.52,180.47,5.96293027]
[1730183289449,2.772,180.51,180.47,2.7724]
[1730183289746,2.772,180.51,180.47,8.73533027]
[1730183291544,2.772,180.51,180.47,2.7724]
[1730183291747,8.73493027,180.51,180.47,2.7724]
[1730183291952,5.96293027,180.51,180.44,5.96293027]
[1730183293343,2.7721,180.5,180.46,2.7727]
[1730183306362,8.73543027,180.48,180.43,8.73613027]
[1730183306561,3.92,180.47,180.43,8.73613027]
[1730183307361,9.88293027,180.47,180.4,2.5077]
[1730183307555,9.88293027,180.47,180.41,5.96293027]
[1730183307967,2.7729,180.45,180.41,8.73633027]
[1730183309865,2.7729,180.45,180.41,2.7734]
[1730183310367,9.88293027,180.47,180.42,5.96293027]
[1730183310557,2.7727,180.46,180.42,8.73623027]
[1730183312864,9.88293027,180.47,180.36,3.92]
[1730183313171,9.88293027,180.47,180.4,5.96293027]
[1730183313872,2.7729,180.45,180.4,8.73653027]
[1730183315476,2.7729,180.45,180.42,5.96293027]
[1730183315973,9.88293027,180.47,180.42,5.96293027]
[1730183316675,2.773,180.45,180.42,5.96293027]
[1730183318074,2.773,180.45,180.42,8.73623027]
[1730183318374,2.7728,180.46,180.42,8.73623027]
[1730183319064,9.88293027,180.47,180.35,7.5991]
[1730183319065,3.92,180.47,180.44,5.96293027]
[1730183319272,3.92,180.46,180.44,8.73583027]
[1730183320069,3.92,180.46,180.44,2.7729]
[1730183320280,3.92,180.46,180.43,8.73613027]
[1730183321275,6.6928,180.46,180.43,8.73613027]
[1730183322684,3.92,180.46,180.43,8.73603027]
[1730183322973,3.92,180.46,180.43,5.96293027]
[1730183324279,6.6929,180.46,180.43,2.7732]
[1730183328678,6.6929,180.46,180.42,8.73623027]
[1730183329988,2.7729,180.45,180.42,5.96293027]
[1730183330491,3.92,180.46,180.35,3.6791]
[1730183330686,3.92,180.46,180.39,5.96293027]
[1730183330687,5.96293027,180.45,180.39,5.96293027]
[1730183331687,2.7732,180.43,180.4,2.7736]
[1730183332282,6.7134,180.42,180.35,3.6791]
[1730183332484,6.7134,180.42,180.39,5.96293027]
[1730183332784,3.94,180.42,180.39,5.96293027]
[1730183333294,3.94,180.42,180.39,8.73673027]
[1730183333791,3.94,180.42,180.4,5.96293027]
[1730183333990,3.94,180.42,180.39,2.7738]
[1730183334178,3.94,180.42,180.4,5.96293027]
[1730183338102,6.7134,180.42,180.38,2.7738]
[1730183338311,6.7134,180.42,180.4,5.96293027]
[1730183339005,6.7134,180.42,180.35,3.6791]
[1730183339195,6.7134,180.42,180.4,5.96293027]
[1730183340296,3.94,180.42,180.4,5.96293027]
[1730183344111,2.7736,180.41,180.37,2.7741]
[1730183344407,3.94,180.42,180.4,5.96293027]
[1730183346705,3.94,180.42,180.39,2.7738]
[1730183346905,6.7134,180.42,180.4,5.96293027]
[1730183347706,3.94,180.42,180.4,8.73653027]
[1730183348107,3.94,180.42,180.4,5.96293027]
[1730183348412,3.92,180.44,180.41,5.96293027]
[1730183348617,3.92,180.44,180.43,5.96293027]
[1730183349109,3.92,180.44,180.43,8.73613027]
[1730183349612,3.92,180.44,180.43,5.96293027]
[1730183351511,3.92,180.45,180.44,2.773]
[1730183351813,3.92,180.46,180.44,2.773]
[1730183352007,3.92,180.46,180.45,5.96293027]
[1730183352211,3.92,180.46,180.45,8.73583027]
[1730183352911,3.92,180.46,180.45,5.96293027]
[1730183353107,3.92,180.48,180.45,5.96293027]
[1730183353313,3.92,180.48,180.47,5.96293027]
[1730183353507,3.92,180.48,180.46,5.96293027]
[1730183355109,2.7724,180.48,180.46,5.96293027]
[1730183355416,6.6924,180.48,180.46,5.96293027]
[1730183358019,3.92,180.48,180.35,3.6791]
[1730183358215,2.773,180.44,180.42,5.96293027]
[1730183358519,6.693,180.44,180.42,5.96293027]
[1730183360317,3.92,180.44,180.42,5.96293027]
[1730183360517,3.92,180.44,180.4,5.96293027]
[1730183361316,2.7733,180.43,180.4,5.96293027]
[1730183361622,3.92,180.44,180.4,5.96293027]
[1730183362016,2.7733,180.43,180.4,8.73653027]
[1730183362216,2.7733,180.43,180.4,5.96293027]
[1730183363521,2.7735,180.41,180.38,2.7739]
[1730183363818,2.7735,180.41,180.4,5.96293027]
[1730183364426,2.7735,180.41,180.38,2.7739]
[1730183364427,2.7735,180.41,180.39,5.96293027]
[1730183365515,2.7735,180.41,180.4,5.96293027]
[1730183365915,3.92,180.44,180.4,5.96293027]
[1730183366117,2.7735,180.42,180.4,5.96293027]
[1730183367524,3.92,180.44,180.41,5.96293027]
[1730183367824,3.92,180.43,180.41,5.96293027]
[1730183368021,3.92,180.43,180.35,3.6791]
[1730183368228,3.92,180.43,180.41,5.96293027]
[1730183368522,3.92,180.43,180.42,5.96293027]
[1730183369623,3.92,180.43,180.42,8.73623027]
[1730183369824,3.92,180.45,180.42,5.96293027]
[1730183370127,3.92,180.46,180.45,5.96293027]
[1730183370726,2.7723,180.49,180.45,5.96293027]
[1730183370930,3.92,180.46,180.45,5.96293027]
[1730183371322,6.6927,180.46,180.45,5.96293027]
[1730183373219,3.92,180.46,180.45,5.96293027]
[1730183373425,3.92,180.46,180.45,8.73583027]
[1730183373629,2.7724,180.49,180.45,8.73583027]
[1730183373928,3.92,180.48,180.47,5.96293027]
[1730183376722,3.92,180.48,180.47,8.73553027]
[1730183376919,10.93840447,180.51,180.47,5.96293027]
[1730183377226,3.92,180.51,180.5,5.96293027]
[1730183378328,6.692,180.51,180.5,5.96293027]
[1730183383927,10.93840447,180.53,180.5,8.73493027]
[1730183384128,10.93840447,180.53,180.52,5.96293027]
[1730183384329,3.92,180.53,180.52,5.96293027]
[1730183384623,6.6917,180.53,180.52,5.96293027]
[1730183389238,3.92,180.53,180.52,5.96293027]
[1730183390337,6.6917,180.53,180.52,5.96293027]
[1730183393844,3.92,180.53,180.52,5.96293027]
[1730183394138,3.7363,180.59,180.52,5.96293027]
[1730183394344,3.92,180.58,180.56,5.96293027]
[1730183394542,2.771,180.57,180.56,5.96293027]
[1730183395738,2.7709,180.58,180.56,5.96293027]
[1730183396050,2.7709,180.58,180.57,5.96293027]
[1730183396241,6.6909,180.58,180.57,5.96293027]
[1730183398446,3.92,180.58,180.55,5.96293027]
[1730183398649,2.771,180.57,180.55,5.96293027]
[1730183398841,3.92,180.58,180.55,5.96293027]
[1730183399038,3.92,180.57,180.54,5.96293027]
[1730183399550,3.92,180.57,180.52,5.96293027]
[1730183400047,2.7716,180.54,180.52,5.96293027]
[1730183400351,3.92,180.57,180.52,5.96293027]
[1730183400553,2.7719,180.52,180.48,2.7723]
[1730183400743,2.7719,180.52,180.51,5.96293027]
[1730183401848,3.92,180.53,180.51,5.96293027]
[1730183402045,3.8617,180.59,180.51,5.96293027]
[1730183402244,3.8617,180.59,180.57,5.96293027]
[1730183402245,3.92,180.58,180.57,5.96293027]
[1730183402948,6.6909,180.58,180.57,5.96293027]
[1730183403646,3.92,180.58,180.57,5.96293027]
[1730183404247,2.7707,180.6,180.57,5.96293027]
[1730183404446,6.6907,180.6,180.59,5.96293027]
[1730183406356,2.7707,180.6,180.59,5.96293027]
[1730183406560,6.6907,180.6,180.59,5.96293027]
[1730183408054,10.91371389,180.69,180.59,5.96293027]
[1730183408256,2.7701,180.64,180.63,5.96293027]
[1730183408859,3.92,180.68,180.62,5.96293027]
[1730183409158,2.7701,180.63,180.62,5.96293027]
[1730183409452,3.92,180.63,180.62,5.96293027]
[1730183411453,3.92,180.63,180.53,3.92]
[1730183411760,3.92,180.63,180.59,5.96293027]
[1730183411946,2.7705,180.61,180.59,5.96293027]
[1730183412359,3.92,180.63,180.59,5.96293027]
[1730183413555,2.7706,180.6,180.59,5.96293027]
[1730183416367,2.7703,180.62,180.59,5.96293027]
[1730183416554,3.92,180.63,180.61,5.96293027]
[1730183417153,3.92,180.63,180.62,5.96293027]
[1730183417563,14.65211389,180.69,180.63,2.7701]
[1730183417860,3.92,180.68,180.65,5.96293027]
[1730183418758,3.92,180.68,180.64,5.96293027]
[1730183419458,2.7698,180.66,180.64,5.96293027]
[1730183424668,3.92,180.68,180.62,5.96293027]
[1730183424871,9.88293027,180.68,180.6,5.96293027]
[1730183425371,2.7703,180.62,180.59,8.73353027]
[1730183425567,3.92,180.63,180.59,5.96293027]
[1730183426073,3.92,180.67,180.62,5.96293027]
[1730183426270,3.92,180.67,180.64,5.96293027]
[1730183427065,3.92,180.67,180.62,5.96293027]
[1730183428375,2.7698,180.65,180.62,5.96293027]
[1730183429074,2.7698,180.65,180.62,8.73323027]
[1730183429275,6.6897,180.66,180.62,8.73323027]
[1730183434877,6.6897,180.66,180.64,5.96293027]
[1730183436583,59.86,180.7,180.65,5.96293027]
[1730183436778,2.7694,180.68,180.65,5.96293027]
[1730183437679,3.92,180.69,180.65,5.96293027]
[1730183437885,3.92,180.68,180.65,5.96293027]
[1730183438385,3.92,180.68,180.66,2.7695]
[1730183439282,3.92,180.68,180.65,5.96293027]
[1730183439283,6.6895,180.68,180.64,2.7699]
[1730183439683,3.92,180.68,180.63,5.96293027]
[1730183442383,2.7695,180.67,180.64,2.7699]
[1730183445487,2.7698,180.66,180.62,2.7702]
[1730183445687,2.7698,180.66,180.63,5.96293027]
[1730183446792,3.92,180.68,180.63,5.96293027]
[1730183447595,2.7698,180.66,180.63,5.96293027]
[1730183448294,3.92,180.68,180.65,5.96293027]
[1730183448499,59.86,180.7,180.67,5.96293027]
[1730183448500,3.92,180.69,180.67,5.96293027]
[1730183449395,2.7692,180.69,180.67,5.96293027]
[1730183449597,3.92,180.68,180.67,5.96293027]
[1730183449795,3.92,180.68,180.65,5.96293027]
[1730183450097,2.7697,180.66,180.65,5.96293027]
[1730183450299,2.7697,180.66,180.63,2.7701]
[1730183450600,2.7698,180.65,180.62,5.96293027]
[1730183451100,2.7697,180.66,180.62,8.73303027]
[1730183452497,2.77,180.64,180.59,2.7706]
[1730183452702,3.92,180.64,180.6,5.96293027]
[1730183454302,2.7702,180.63,180.6,8.73343027]
[1730183454504,3.92,180.64,180.6,8.73343027]
[1730183455007,6.6901,180.64,180.6,8.73343027]
[1730183456506,2.7701,180.63,180.6,8.73343027]
[1730183457207,2.7703,180.62,180.6,5.96293027]
[1730183459812,2.7702,180.63,180.6,5.96293027]
[1730183460004,2.7702,180.63,180.59,2.7707]
[1730183460005,9.88293027,180.64,180.58,5.96293027]
[1730183460605,3.92,180.64,180.59,5.96293027]
[1730183461204,6.6901,180.64,180.6,2.7706]
[1730183461813,2.7701,180.63,180.6,2.7706]
[1730183473421,3.92,180.64,180.62,2.7702]
[1730183474010,3.92,180.64,180.61,5.96293027]
[1730183474213,3.92,180.64,180.63,2.7701]
[1730183474519,3.92,180.64,180.61,5.96293027]
[1730183475020,3.92,180.64,180.62,2.7702]
[1730183476115,3.92,180.64,180.61,8.73333027]
[1730183479214,3.92,180.64,180.62,2.7702]
[1730183480307,3.92,180.64,180.63,2.7701]
[1730183480923,13.3563873,180.68,180.63,2.7701]
[1730183481223,3.92,180.67,180.63,2.7701]
[1730183481414,3.92,180.66,180.63,2.7701]
[1730183481818,3.92,180.66,180.64,8.73283027]
[1730183482410,2.7693,180.69,180.65,8.73273027]
[1730183482616,3.92,180.68,180.65,5.96293027]
[1730183483019,3.92,180.68,180.66,2.7696]
[1730183484319,6.6895,180.68,180.64,2.7699]
[1730183484629,5.96293027,180.66,180.59,2.5482]
[1730183484921,6.6899,180.65,180.62,2.7702]
[1730183485321,6.6899,180.65,180.6,5.96293027]
[1730183485322,3.92,180.65,180.6,5.96293027]
[1730183485526,2.7702,180.63,180.59,2.7707]
[1730183486619,3.92,180.65,180.55,3.92]
[1730183486825,3.92,180.65,180.64,5.96293027]
[1730183488228,3.92,180.68,180.65,2.7697]
[1730183488429,3.92,180.69,180.66,5.96293027]
[1730183489219,3.92,180.69,180.66,8.73253027]
[1730183490118,6.6893,180.69,180.66,5.96293027]
[1730183491124,6.6893,180.69,180.65,2.7697]
[1730183491332,3.92,180.69,180.63,5.96293027]
[1730183492327,3.92,180.69,180.63,8.73303027]
[1730183492328,2.7696,180.67,180.63,8.73303027]
[1730183493031,2.7697,180.66,180.63,2.7701]
[1730183493525,12.0976873,180.73,180.63,5.96293027]
[1730183493828,2.7692,180.69,180.57,6.3832]
[1730183494034,5.96293027,180.66,180.54,416.48775556]
[1730183494221,5.96293027,180.66,180.62,5.96293027]
[1730183494415,9.88293027,180.68,180.62,5.96293027]
[1730183495329,2.7697,180.66,180.63,2.7701]
[1730183496024,2.7697,180.66,180.64,5.96293027]
[1730183499229,10.8973873,180.73,180.65,5.96293027]
[1730183499527,2.7686,180.73,180.69,2.7692]
[1730183500623,2.7686,180.73,180.7,2.769]
[1730183500824,3.92,180.72,180.62,1.1955]
[1730183501024,3.92,180.72,180.69,5.96293027]
[1730183501529,3.92,180.72,180.62,1.1955]
[1730183501732,3.92,180.72,180.66,5.96293027]
[1730183502125,10.8973873,180.74,180.71,5.96293027]
[1730183502334,3.92,180.77,180.71,5.96293027]
[1730183502627,6.6882,180.76,180.72,2.7687]
[1730183505738,2.7684,180.75,180.71,8.73183027]
[1730183507530,2.7685,180.74,180.71,8.73183027]
[1730183507737,3.92,180.76,180.7,5.96293027]
[1730183507738,5.96293027,180.75,180.7,5.96293027]
[1730183508827,2.7684,180.75,180.71,8.73173027]
[1730183509022,3.92,180.76,180.71,8.73173027]
[1730183509435,9.88293027,180.76,180.7,5.96293027]
[1730183509637,9.88293027,180.76,180.66,2.4982]
[1730183509638,5.96293027,180.74,180.69,2.7692]
[1730183509932,5.96293027,180.74,180.68,5.96293027]
[1730183510325,2.769,180.71,180.68,5.96293027]
[1730183510531,2.769,180.71,180.64,5.96293027]
[1730183510532,5.96293027,180.7,180.64,5.96293027]
[1730183511633,5.96293027,180.7,180.64,8.73283027]
[1730183512639,2.7694,180.68,180.64,8.73283027]
[1730183513727,1.2944,180.73,180.65,5.96293027]
[1730183514028,2.7691,180.7,180.66,2.7695]
[1730183514432,9.88293027,180.72,180.65,5.96293027]
[1730183514632,2.769,180.71,180.67,2.7694]
[1730183514832,9.88293027,180.72,180.67,8.73233027]
[1730183516234,2.7691,180.7,180.67,8.73233027]
[1730183516437,2.7691,180.7,180.66,8.73253027]
[1730183517637,2.7695,180.67,180.64,2.7699]
[1730183517933,6.6895,180.67,180.64,2.7699]
[1730183518133,2.7699,180.65,180.62,2.7701]
[1730183519941,2.7698,180.65,180.61,5.96293027]
[1730183520534,2.7698,180.65,180.62,5.96293027]
[1730183521041,2.7698,180.65,180.62,8.73313027]
[1730183522342,3.92,180.67,180.62,5.96293027]
[1730183522540,2.7697,180.66,180.63,2.7701]
[1730183525934,1.2944,180.73,180.65,5.96293027]
[1730183526138,12.2004873,180.74,180.55,3.7619]
[1730183526139,12.2004873,180.74,180.7,5.96293027]
[1730183526338,3.92,180.73,180.7,5.96293027]
[1730183526539,3.92,180.73,180.7,8.73183027]
[1730183526933,5.96293027,180.78,180.72,5.96293027]
[1730183527135,3.92,180.74,180.72,5.96293027]
[1730183528339,3.92,180.74,180.72,8.73163027]
[1730183528743,2.768,180.77,180.72,5.96293027]
[1730183528941,3.92,180.76,180.74,5.96293027]
[1730183529137,1.1925,180.79,180.74,5.96293027]
[1730183529339,3.92,180.78,180.75,5.96293027]
[1730183529637,3.92,180.77,180.75,8.73123027]
[1730183531435,3.92,180.77,180.75,5.96293027]
[1730183532432,3.92,180.77,180.74,8.73133027]
[1730183532632,3.92,180.77,180.73,2.7685]
[1730183533545,3.92,180.77,180.74,5.96293027]
[1730183534245,6.688,180.77,180.74,5.96293027]
[1730183539148,3.92,180.77,180.74,5.96293027]
[1730183539347,3.92,180.77,180.76,2.7681]
[1730183539654,3.92,180.77,180.75,5.96293027]
[1730183540551,3.92,180.77,180.75,8.73113027]
[1730183541144,3.92,180.77,180.76,2.7681]
[1730183542045,1.2599,180.82,180.77,2.7678]
[1730183542252,3.92,180.81,180.78,5.96293027]
[1730183542446,12.10317558,180.83,180.78,5.96293027]
[1730183542652,3.92,180.8,180.78,5.96293027]
[1730183543352,2.7678,180.78,180.69,3.7664]
[1730183543548,2.7678,180.78,180.75,5.96293027]
[1730183544344,2.7677,180.79,180.75,5.96293027]
[1730183544545,9.88293027,180.8,180.75,5.96293027]
[1730183544949,2.7679,180.78,180.75,5.96293027]
[1730183545150,3.92,180.8,180.76,5.96293027]
[1730183545340,3.92,180.8,180.77,2.768]
[1730183545546,3.92,180.79,180.78,5.96293027]
[1730183546348,3.92,180.79,180.78,8.73063027]
[1730183547357,9.88293027,180.79,180.73,5.96293027]
[1730183548151,3.92,180.79,180.73,5.96293027]
[1730183548364,2.768,180.77,180.74,2.7684]
[1730183548856,2.7681,180.77,180.75,5.96293027]
[1730183550756,2.7681,180.77,180.73,8.73153027]
[1730183554954,2.7682,180.76,180.73,8.73153027]
[1730183557373,2.7682,180.76,180.74,5.96293027]
[1730183557574,3.92,180.79,180.76,2.768]
[1730183557575,2.7677,180.79,180.76,2.768]
[1730183557872,3.94,180.78,180.77,5.96293027]
[1730183558277,2.7673,180.82,180.77,5.96293027]
[1730183558467,3.94,180.81,180.77,5.96293027]
[1730183560266,2.7677,180.79,180.77,5.96293027]
[1730183561775,2.7675,180.8,180.77,5.96293027]
[1730183563575,2.7675,180.8,180.77,8.73073027]
[1730183566786,2.7672,180.82,180.79,2.7676]
[1730183566979,3.94,180.81,180.8,5.96293027]
[1730183567282,3.94,180.82,180.8,5.96293027]
[1730183567674,2.7671,180.83,180.81,5.96293027]
[1730183567871,3.94,180.82,180.81,5.96293027]
[1730183568574,2.767,180.84,180.81,5.96293027]
[1730183568575,3.94,180.83,180.81,5.96293027]
[1730183569278,3.94,180.83,180.81,8.73033027]
[1730183570982,3.94,180.83,180.79,5.96293027]
[1730183571189,2.7672,180.82,180.79,8.73053027]
[1730183572990,2.7672,180.82,180.8,5.96293027]
[1730183576790,2.7674,180.81,180.8,5.96293027]
[1730183576988,2.7674,180.81,180.78,8.73073027]
[1730183577188,5.96293027,180.82,180.77,5.96293027]
[1730183577390,2.7676,180.8,180.77,8.73083027]
[1730183579793,2.7674,180.81,180.77,8.73083027]
[1730183581201,2.7674,180.81,180.78,5.96293027]
[1730183581994,6.7072,180.83,180.8,5.96293027]
[1730183582296,3.94,180.83,180.81,5.96293027]
[1730183582491,2.4675,180.87,180.81,5.96293027]
[1730183582696,6.7066,180.86,180.83,2.767]
[1730183582993,6.7066,180.86,180.81,5.96293027]
[1730183583194,3.94,180.86,180.81,5.96293027]
[1730183583602,3.94,180.86,180.83,5.96293027]
[1730183583984,2.7669,180.85,180.81,8.73023027]
[1730183584801,3.94,180.84,180.81,8.73023027]
[1730183586202,2.7669,180.85,180.81,8.73023027]
[1730183586499,3.94,180.84,180.81,8.73023027]
[1730183588494,6.7069,180.84,180.81,5.96293027]
[1730183589300,3.94,180.83,180.81,8.73013027]
[1730183589696,3.94,180.83,180.81,5.96293027]
[1730183590201,2.7672,180.82,180.79,2.7676]
[1730183590397,2.7672,180.82,180.75,3.94]
[1730183590398,9.90293027,180.81,180.71,336.0]
[1730183590592,3.94,180.8,180.76,5.96293027]
[1730183590998,2.7678,180.79,180.76,5.96293027]
[1730183591205,9.90293027,180.8,180.75,2.7682]
[1730183592501,5.96293027,180.78,180.72,2.7687]
[1730183593394,2.7683,180.76,180.72,2.7687]
[1730183593598,6.7083,180.76,180.72,2.7687]
[1730183595211,6.7083,180.76,180.73,2.7685]
[1730183595902,6.7083,180.76,180.71,5.96293027]
[1730183596101,6.7083,180.76,180.72,2.7686]
[1730183597105,6.7083,180.76,180.73,2.7686]
[1730183598109,2.7686,180.73,180.7,2.769]
[1730183598509,2.7686,180.73,180.68,1.2632]
[1730183598510,3.94,180.72,180.68,5.96293027]
[1730183598712,3.94,180.72,180.69,2.7691]
[1730183599406,3.94,180.72,180.68,5.96293027]
[1730183599609,3.94,180.72,180.7,2.769]
[1730183601214,3.94,180.72,180.7,8.73193027]
[1730183602302,3.94,180.72,180.7,2.769]
[1730183607412,3.94,180.72,180.68,2.7692]
[1730183607807,5.96293027,180.71,180.63,1.1818]
[1730183608006,5.96293027,180.71,180.66,2.7695]
[1730183608410,2.7691,180.7,180.66,2.7695]
[1730183608909,2.7691,180.7,180.67,2.7695]
[1730183609816,2.7691,180.7,180.67,8.73243027]
[1730183613215,2.7689,180.71,180.68,2.7693]
[1730183615821,8.73183027,180.71,180.68,2.7693]
[1730183619011,5.96293027,180.7,180.62,2.5523]
[1730183619211,5.96293027,180.68,180.58,5.1403]
[1730183619417,3.92,180.67,180.62,5.96293027]
[1730183619612,3.92,180.67,180.65,2.7697]
[1730183620326,6.6895,180.67,180.63,2.77]
[1730183620626,6.6895,180.67,180.62,5.96293027]
[1730183621221,2.7698,180.65,180.62,2.7702]
[1730183621718,2.7698,180.65,180.61,2.7703]
[1730183621916,2.7698,180.65,180.59,5.96293027]
[1730183622420,2.7698,180.65,180.61,2.7703]
[1730183623716,2.7698,180.65,180.61,8.73323027]
[1730183626027,3.92,180.67,180.61,5.96293027]
[1730183626343,12.65253027,180.67,180.61,5.96293027]
[1730183626518,9.88293027,180.67,180.61,5.96293027]
[1730183626828,9.88293027,180.67,180.64,2.77]
[1730183628225,3.92,180.67,180.64,5.96293027]
[1730183628425,3.92,180.67,180.66,2.7697]
[1730183628624,5.96293027,180.7,180.66,2.7697]
[1730183628825,3.92,180.69,180.66,2.7697]
[1730183629524,6.6892,180.69,180.66,2.7697]
[1730183633635,3.6597,180.71,180.65,5.96293027]
[1730183633833,3.92,180.7,180.68,2.7693]
[1730183634030,3.92,180.7,180.67,5.96293027]
[1730183634433,3.92,180.7,180.67,8.73243027]
[1730183635736,3.92,180.7,180.67,2.7695]
[1730183635931,6.6891,180.7,180.67,2.7695]
[1730183639737,3.92,180.7,180.65,5.96293027]
[1730183639942,2.7693,180.69,180.66,2.7696]
[1730183640946,3.92,180.7,180.65,5.96293027]
[1730183641639,6.6892,180.7,180.66,2.7696]
[1730183643435,2.7692,180.69,180.66,2.7696]
[1730183644341,3.92,180.7,180.59,3.92]
[1730183644641,3.92,180.7,180.65,2.7698]
[1730183644642,2.7694,180.68,180.65,2.7698]
[1730183648639,2.7695,180.67,180.64,2.7699]
[1730183649042,3.92,180.66,180.64,2.7699]
[1730183650438,3.92,180.66,180.62,5.96293027]
[1730183650641,3.92,180.66,180.58,1.2203]
[1730183650945,3.92,180.66,180.6,5.96293027]
[1730183651349,5.96293027,180.65,180.61,2.7703]
[1730183651535,5.96293027,180.65,180.58,7.18323027]
[1730183651734,9.88293027,180.66,180.6,5.96293027]
[1730183652647,12.65273027,180.66,180.62,2.7702]